Cogmind - Beta 17.1 @@@ ROGUE MODE // 2026.08.30 @ 01:16:13 Player: Finn Result: Destroyed by G-47 Trooper with Particle Gun Performance ------------- Evolutions (2) 1000 Regions Visited (5) 1000 Robots Destroyed (28) 140 Value Destroyed (900) 900 Prototype IDs (1) 20 Alien Tech Used (0) 0 Bonus (11) 11 TOTAL SCORE: 3071 Bonus ------- High Alert Combat Kills 11 Cogmind --------- Core Integrity 0/550 Matter 300/300 Energy 19/100 System Corruption 0% Temperature Cool (86) Movement Core (100) Ox1 Location -8/Storage Parts ------- > --- POWER (1) -------- (None) > --- PROPULSION (4) --- (None) > --- UTILITY (4) ------ Advanced Terrain Scan Processor > --- WEAPON (2) ------- Advanced Beam Cannon > --- INVENTORY (5) ---- Flight Unit Advanced Weight Redist. System Great Axe Peak State ------------ > --- POWER ------------ Light Nuclear Core > --- PROPULSION ------- Flight Unit Flight Unit Flight Unit Cesium-ion Thruster > --- UTILITY ---------- Weight Redist. System Advanced Weight Redist. System Structural Scanner Advanced Terrain Scan Processor > --- WEAPON ----------- Particle Gun Heavy Particle Cannon > --- INVENTORY -------- Light Ion Engine Flight Unit Flight Unit Advanced Weight Redist. System Great Axe [Rating: 25] Favorites ----------- Power Ion Engine Engine Ion Engine Power Core Light Nuclear Core Propulsion Flight Unit Wheel Compact Wheel Flight Unit Flight Unit Utility Structural Scanner Device Structural Scanner Processor Advanced Terrain Scan Processor Weapon Small Laser Energy Gun Small Laser Energy Cannon Heavy Particle Cannon Ballistic Gun Autogun Slashing Weapon Great Axe Build | -11 -10 -9 -9 -8 -8 ------- Run | Yrd Mat Mat Min Mat Sto Slots Evolved 4 | . . 2 . 2 . Power . | . . . . . . Propulsion 2 | . . 2 . . . Utility 2 | . . . . 2 . Weapon . | . . . . . . Parts Attached 32 | 5 2 1 11 11 2 Power 7 | 1 1 . 3 1 1 Engine 6 | 1 1 . 3 . 1 Core 1 | . . . . 1 . Reactor . | . . . . . . Propulsion 11 | 2 . . 4 5 . Treads . | . . . . . . Leg . | . . . . . . Wheel 2 | 2 . . . . . Hover . | . . . . . . Flight 9 | . . . 4 5 . Utility 5 | . 1 . 1 3 . Device 4 | . 1 . 1 2 . Storage . | . . . . . . Processor 1 | . . . . 1 . Hackware . | . . . . . . Protection . | . . . . . . Artifact . | . . . . . . Weapon 9 | 2 . 1 3 2 1 Energy Gun 4 | 2 . 1 . 1 . Energy Cannon 2 | . . . . 1 1 Ballistic Gun 2 | . . . 2 . . Ballistic Cannon . | . . . . . . Launcher . | . . . . . . Special Weapon . | . . . . . . Impact Weapon . | . . . . . . Slashing Weapon 1 | . . . 1 . . Piercing Weapon . | . . . . . . Special Melee Weapon . | . . . . . . Unidentified Prototypes 1 | . . . . . 1 Parts Lost 20 | . 3 . 3 2 12 Power 4 | . 1 . 1 . 2 Propulsion 9 | . 1 . 1 2 5 Utility 3 | . . . . . 3 Weapon 4 | . 1 . 1 . 2 Highest Loss Streak 11 | . 2 . 2 2 11 To Critical Strikes . | . . . . . . Average Backups 2 | . 1 1 2 4 3 Power 1 | . . 1 1 1 . Propulsion . | . . . . 1 1 Utility . | . . . . . 1 Weapon . | . . . . 1 1 Tool/Special . | . . . . . . Unused Backups 1 | . . . 1 . . Power . | . . . . . . Propulsion . | . . . . . . Utility . | . . . . . . Weapon 1 | . . . 1 . . Tool/Special . | . . . . . . Average Slot Usage (%) 67 | . 71 49 64 90 43 Engine 10 | . 13 11 10 4 . Wheel 12 | . 28 11 6 . . Flight 9 | . . . 10 32 9 Device 11 | . . 11 15 26 16 Energy Gun 16 | . 28 16 13 4 1 Energy Cannon 1 | . . . . 7 5 Ballistic Gun 3 | . . . 6 4 . Peak Build Rating 25 | 5 6 5 14 25 25 Average Rating 7 | 3 5 4 7 20 10 On Entrance 8 | . 5 4 5 14 25 Avg Prop Armor Cover (%) . | . . . . . . Naked Turns . | . . . . . . Heaviest Build 17 | 8 9 8 15 17 15 Greatest Support 26 | 26 26 16 18 23 23 Greatest Overweight (x) 2 | . . . 1 1 2 Average Overweight (x) . | . . . . . . Largest Inventory Capacity 5 | 5 5 5 5 5 5 Average Capacity 5 | 5 5 5 5 5 5 Most Carried 5 | 5 3 2 5 5 5 Average Carried 2 | . 1 1 2 4 3 Final Capacity 5 | 5 5 5 5 5 5 Final Carried 5 | . 2 1 4 5 3 Class Distribution -------------------- 77% | Mutant 13% | Scavenger-Mutant 9% | Scavenger-Sprinter Dominant Class ---------------- Mutant | -10/Materials Mutant | -9/Materials Mutant | -9/Mines Scavenger-Sprinter | -8/Materials Mutant | -8/Storage Resources | -11 -10 -9 -9 -8 -8 ----------- Run | Yrd Mat Mat Min Mat Sto Matter Collected 700 | 250 10 . 300 120 20 Remotely . | . . . . . . Salvage Created 857 | . 246 . 278 176 157 Parts 54 | . 11 . 18 11 14 Haulers Intercepted . | . . . . . . Recyclers Shooed . | . . . . . . Parts Field Recycled . | . . . . . . Retrieved Matter . | . . . . . . Parts Self-Destructed . | . . . . . . Prevented . | . . . . . . Parts Restored . | . . . . . . Kills | -11 -10 -9 -9 -8 -8 ------- Run | Yrd Mat Mat Min Mat Sto Combat Hostiles Destroyed 27 | . 6 . 13 4 4 Guns 20 | . 5 . 13 1 1 Cannons 6 | . . . . 3 3 Classes Destroyed 5 | . 1 . 2 1 1 Operator 1 | . . . . . 1 Swarmer 13 | . . . 11 1 1 Grunt 10 | . 6 . 1 2 1 Duelist 1 | . . . 1 . . Sentry 3 | . . . . 1 2 Best Kill Streak 4 | . 3 . 4 1 3 Combat Bots Only 4 | . 3 . 4 1 2 Max Kills in Single Turn 1 | . 1 . 1 1 1 Gunslinging . | . . . . . . Exploded . | . . . . . . Melee . | . . . . . . Uniques/NPCs Destroyed . | . . . . . . Combat | -11 -10 -9 -9 -8 -8 -------- Run | Yrd Mat Mat Min Mat Sto Hostile Shots Fired 239 | . 52 1 53 42 91 Missed 80 | . 17 1 15 16 31 Hits 159 | . 35 . 38 26 60 Melee 5 | . . . 5 . . Projectile 154 | . 35 . 33 26 60 Critical Strikes 4 | . . . 1 . 3 Damage Taken 2009 | . 419 . 464 303 823 Core 943 | . 191 . 195 124 433 Absorbed by Shields . | . . . . . . Core Remaining (%) 58 | 100 23 . 51 . . Volleys Fired 170 | . 33 . 94 21 22 Largest 2 | . 2 . 2 2 2 Hottest 140 | . 90 . 80 140 140 Shots Fired 272 | . 62 . 154 33 23 Gun 236 | . 62 . 154 19 1 Cannon 36 | . . . . 14 22 Launcher . | . . . . . . Special . | . . . . . . Kinetic 71 | . . . 66 5 . Thermal 201 | . 62 . 88 28 23 Explosive . | . . . . . . Electromagnetic . | . . . . . . Robot Hit Streak 8 | . 7 . 8 8 7 Robot Miss Streak 6 | . 3 . 4 6 2 Penetration Max . | . . . . . . Secondary Targets 2 | . 1 . 1 . . Max Gunslinging Chain 1 | . 1 . 1 . . Shots Hit Robots 105 | . 34 . 36 20 15 Core Hits 43 | . 12 . 17 7 7 Critical Kills . | . . . . . . Critical Parts Destroyed . | . . . . . . Critical Strikes 4 | . 3 . . . 1 Burn 4 | . 3 . . . 1 Melee Attacks . | . . . . . . Impact . | . . . . . . Slashing . | . . . . . . Piercing . | . . . . . . Sneak Attacks . | . . . . . . Combat Hostiles . | . . . . . . Follow-up Attacks . | . . . . . . Damage Inflicted 1713 | . 415 . 435 381 482 Guns 1039 | . 405 . 435 181 18 Cannons 503 | . . . . 200 303 Explosions 158 | . . . . . 158 Melee . | . . . . . . Ramming 13 | . 10 . . . 3 Kinetic 375 | . . . 334 41 . Thermal 1167 | . 405 . 101 340 321 Explosive 158 | . . . . . 158 Electromagnetic . | . . . . . . Impact . | . . . . . . Slashing . | . . . . . . Piercing . | . . . . . . Highest Corruption . | . . . . . . Average Corruption . | . . . . . . Corruption Purged . | . . . . . . Corruption Blocked . | . . . . . . Overload Shots . | . . . . . . Overflow Damage 36 | . . . . 12 24 Projectiles 14 | . . . . 12 2 Explosions 22 | . . . . . 22 Melee . | . . . . . . Knockbacks . | . . . . . . Impact . | . . . . . . Kinetic . | . . . . . . Secondary . | . . . . . . Self-Inflicted Damage 57 | . 5 . . . 52 Shots 1 | . . . . . 1 Rammed 6 | . 3 . . . 3 Targets Rammed 6 | . 3 . . . 3 Kicked . | . . . . . . Crushed . | . . . . . . Highest Temperature 520 | . 400 . 117 520 169 Average Temperature 132 | . 168 . 27 281 68 Received Heat Transfer 726 | . 231 . 54 90 351 Effects 19 | . 8 . . 11 . Shutdowns 1 | . . . . 1 . Energy Bleed 2 | . 1 . . 1 . Interference 8 | . 5 . . 3 . Damage (minor) 4 | . 2 . . 2 . Damage (major) 4 | . . . . 4 . Siege Activations . | . . . . . . Martial Activations . | . . . . . . Shielding Activations . | . . . . . . Robots Disrupted . | . . . . . . Combat Hostiles . | . . . . . . Robots Corrupted . | . . . . . . Combat Hostiles . | . . . . . . Parts Fried . | . . . . . . Impact Corruptions . | . . . . . . Robots Melted 1 | . 1 . . . . Combat Hostiles 1 | . 1 . . . . Parts Melted 6 | . 5 . 1 . . Heat Transferred 2747 | . 1264 . 225 629 629 Parts Sabotaged . | . . . . . . Parts Stolen . | . . . . . . Parts Stripped . | . . . . . . Power Chain Reactions . | . . . . . . Alert | -11 -10 -9 -9 -8 -8 ------- Run | Yrd Mat Mat Min Mat Sto Maximum Alert Level 2 | . . . 1 . 2 Low Security (%) 90 | 100 100 100 89 100 7 Level 1 9 | . . . 10 . 78 Level 2 . | . . . . . 14 Level 3 . | . . . . . . Level 4 . | . . . . . . Level 5 . | . . . . . . High Security . | . . . . . . Max Security . | . . . . . . Peak Influence 422 | . 70 11 239 101 422 Initial 90 | . . 6 . 90 33 Average 57 | . 20 1 66 63 272 Influence Increases 1299 | . 215 5 411 129 539 Destroy 0b10 Robot/C 540 | . 120 . 260 80 80 Destroy 0b10 Robot/NC 5 | . . . . . 5 Destroy Leader 100 | . 20 . 40 10 30 Successful Hack 9 | . . 5 . 4 . Disable Machine 120 | . . . 75 . 45 Anti-Garrison Action 150 | . . . . . 150 Destroy Structure 45 | . . . 21 5 19 Partial Spotted 30 | . . . . 15 15 Lose Combat Pursuer 300 | . 75 . 15 15 195 Influence Decreases 897 | . 199 21 178 283 216 Entered New Map 199 | . . 10 . 143 46 Time Decay 498 | . 169 11 148 120 50 Lost Part 200 | . 30 . 30 20 120 Squads Dispatched 11 | . 3 1 . 3 4 Investigation 4 | . 3 . . 1 . Extermination . | . . . . . . Reinforcement 4 | . . 1 . 2 1 Assault 2 | . . . . . 2 Garrison 1 | . . . . . 1 Intercept . | . . . . . . Searches Triggered . | . . . . . . Construction Impeded . | . . . . . . Haulers Reinforced . | . . . . . . Active Scanning Responses . | . . . . . . Cargo Convoy Interrupts . | . . . . . . Stealth | -11 -10 -9 -9 -8 -8 --------- Run | Yrd Mat Mat Min Mat Sto Distress Signals 5 | . 2 . . 2 1 Communications Jammed . | . . . . . . Distress Signals . | . . . . . . Times Spotted 89 | . 22 4 14 20 29 Peak Tracking Total 16 | . 6 4 4 7 16 Tactical Retreats 8 | . 3 . 1 1 3 Traps | -11 -10 -9 -9 -8 -8 ------- Run | Yrd Mat Mat Min Mat Sto Traps Triggered 3 | . 2 . 1 . . Indirectly . | . . . . . . Trap Hack Attempts . | . . . . . . Triggered . | . . . . . . Disarmed . | . . . . . . Reprogrammed 1 | . . . . 1 . Reused . | . . . . . . Traps Extracted . | . . . . . . Installed . | . . . . . . Triggered . | . . . . . . Machines | -11 -10 -9 -9 -8 -8 ---------- Run | Yrd Mat Mat Min Mat Sto Machines Disabled 9 | . . . 5 . 4 Max in Single Turn 2 | . . . 1 . 2 Garrison Access 1 | . . . . . 1 Machines Repaired . | . . . . . . Machines Dismantled . | . . . . . . Machines Sabotaged . | . . . . . . Overloaded Fab Kills . | . . . . . . Hacking | -11 -10 -9 -9 -8 -8 --------- Run | Yrd Mat Mat Min Mat Sto Machines Accessed 11 | . 2 4 2 3 . Terminals 9 | . 2 3 1 3 . Fabricators . | . . . . . . Repair Stations . | . . . . . . Recycling Units 1 | . . 1 . . . Scanalyzers . | . . . . . . Garrison Access . | . . . . . . Total Hacks 20 | . 4 7 2 7 . Successful 8 | . 1 2 2 3 . Failed 12 | . 3 5 . 4 . Catastrophic 1 | . . . . 1 . Database Lockouts . | . . . . . . Manual . | . . . . . . Terminals 18 | . 4 6 1 7 . Fabricators . | . . . . . . Repair Stations . | . . . . . . Recycling Units 1 | . . 1 . . . Scanalyzers . | . . . . . . Garrison Access . | . . . . . . Terminal Hacks 7 | . 1 1 2 3 . Record 2 | . 1 . . 1 . Open Door 1 | . . . 1 . . Locate Traps 1 | . . . . 1 . Reprogram Traps 1 | . . . . 1 . Zone Layout 2 | . . 1 1 . . Fabricator Hacks . | . . . . . . Repair Station Hacks . | . . . . . . Recycling Unit Hacks 1 | . . 1 . . . Process 1 | . . 1 . . . Scanalyzer . | . . . . . . Garrison Access Hacks . | . . . . . . Unauthorized Hacks . | . . . . . . Terminals . | . . . . . . Fabricators . | . . . . . . Repair Stations . | . . . . . . Recycling Units . | . . . . . . Scanalyzers . | . . . . . . Garrison Access . | . . . . . . Data Cores Recovered . | . . . . . . Used . | . . . . . . Hacking Detections 7 | . 2 3 . 2 . Full Trace Events 2 | . 1 . . 1 . Feedback Events . | . . . . . . Feedback Blocked . | . . . . . . Robot Schematics Acquired . | . . . . . . Robots Built . | . . . . . . Authchips . | . . . . . . Time . | . . . . . . Total Robot Build Rating . | . . . . . . Part Schematics Acquired . | . . . . . . Parts Built . | . . . . . . Authchips . | . . . . . . Time . | . . . . . . Total Part Build Rating . | . . . . . . Part Studies Acquired . | . . . . . . Parts Repaired . | . . . . . . Time . | . . . . . . Parts Recycled . | . . . . . . Recycled Matter 16 | . . 16 . . . Retrieved Matter . | . . . . . . Retrieved Components . | . . . . . . Parts Scanalyzed . | . . . . . . Part Schematics Acquired . | . . . . . . Parts Damaged . | . . . . . . Bothacking | -11 -10 -9 -9 -8 -8 ------------ Run | Yrd Mat Mat Min Mat Sto Used RIF Installer . | . . . . . . Robots Hacked . | . . . . . . Non-combat . | . . . . . . Combat . | . . . . . . Robot Hacks Applied . | . . . . . . Relay Couplers Released 2 | . . . . . 2 Machine Destruction 2 | . . . . . 2 Fabnet Peak Effective % . | . . . . . . Robots Rewired . | . . . . . . Allies Hacked . | . . . . . . Hacks Repelled . | . . . . . . Allies | -11 -10 -9 -9 -8 -8 -------- Run | Yrd Mat Mat Min Mat Sto Total Allies . | . . . . . . Largest Group . | . . . . . . Highest-Rated Group . | . . . . . . Highest-Rated Ally . | . . . . . . Total Orders . | . . . . . . Ally Attacks . | . . . . . . Total Damage . | . . . . . . Kills . | . . . . . . Allies Corrupted . | . . . . . . Allies Melted . | . . . . . . Intel | -11 -10 -9 -9 -8 -8 ------- Run | Yrd Mat Mat Min Mat Sto Active Infowar (turns) 1395 | . 41 116 1073 55 110 Structural 1395 | . 41 116 1073 55 110 Robot Analysis Total . | . . . . . . Derelict Logs Recovered 1 | . . . 1 . . Drone Launches . | . . . . . . Drone Recoveries . | . . . . . . Exploration | -11 -10 -9 -9 -8 -8 ------------- Run | Yrd Mat Mat Min Mat Sto Turns Passed 2298 | 51 694 116 1073 250 114 Spaces Moved 2008 | 49 280 116 1021 427 115 Core 64 | 22 . . . . 42 Treads . | . . . . . . Legs . | . . . . . . Wheels 781 | 27 280 116 358 . . Hover . | . . . . . . Flight 1163 | . . . 663 427 73 Fastest Speed 29 | 50 90 100 34 29 29 Average Speed 58 | 72 90 100 57 30 44 Slowest Speed 200 | 90 100 100 117 117 200 Overloaded Moves . | . . . . . . Propulsion Burnouts . | . . . . . . Robots Hopped 16 | . . . 10 4 2 Potential Cave-ins . | . . . . . . Cave-ins Triggered . | . . . . . . Exploration Rate (%) 35 | 3 29 18 99 34 32 Regions Visited 5 Branch Regions 2 Pre-discovered Areas 1 | . . . 1 . . Known Exits Taken . | . . . . . . Unknown Exits Taken 5 | 1 1 1 1 1 . Scrap Searched 2 | . . . 2 . . Spaces Dug . | . . . . . . Terrain Destroyed 44 | . . . 21 5 18 Melee . | . . . . . . Projectile 5 | . . . . 5 . AOE 39 | . . . 21 . 18 Terrain Rammed . | . . . . . . Walls Destroyed . | . . . . . . Machines Disabled . | . . . . . . Actions | -11 -10 -9 -9 -8 -8 --------- Run | Yrd Mat Mat Min Mat Sto Total 2849 | 64 659 116 1349 509 152 Wait 617 | 6 338 . 221 42 10 Move 1973 | 48 279 115 1002 418 111 Hop 14 | . . . 8 4 2 Pick Up 25 | 5 4 . 10 5 1 Fast Attach 7 | . . . 2 5 . Attach 18 | 5 2 1 5 2 3 Detach 1 | . . . . 1 . Swap 8 | . . . 4 4 . Drop 10 | . . . 3 7 . Fire 170 | . 33 . 94 21 22 Melee . | . . . . . . Ram 6 | . 3 . . . 3 Kick . | . . . . . . Crush . | . . . . . . Escape Stasis . | . . . . . . Rewire . | . . . . . . Trap . | . . . . . . Miscellaneous . | . . . . . . Route ------- -11/Scrapyard -10/Materials -9/Materials -9/Mines (discovered 2 exits: *Mat x2) -8/Materials (discovered 2 exits: [*Fac] / *Sto) -8/Storage History --------- Turn | Location | Event 7 | -11/Scrapyard | Discovered new exit (range 16) 52 | -11/Scrapyard | Entered Materials 268 | -10/Materials | Core integrity fell below 50% 306 | -10/Materials | Build established: Mutant 720 | -10/Materials | Discovered new exit (range 14) 746 | -10/Materials | Entered another Materials area 746 | -9/Materials | Evolved 2 slots: Propulsion x2 857 | -9/Materials | Discovered new exit (range 6) 862 | -9/Materials | Entered Mines 867 | -9/Mines | Learned Materials garrison access intel 1582 | -9/Mines | Discovered new exit (range 6) 1665 | -9/Mines | Met a Derelict who couldn't figure out how to use a Trap Extractor 1702 | -9/Mines | Discovered new exit (range 10) 1851 | -9/Mines | Learned location of Storage (-8) 1917 | -9/Mines | Build established: Scavenger-Mutant 1935 | -9/Mines | Entered Materials 1935 | -8/Materials | Evolved 2 slots: Utility x2 1936 | -8/Materials | Loaded intel: 1 garrison access location 2143 | -8/Materials | Discovered new exit (range 14) 2178 | -8/Materials | Discovered new exit (range 16) 2185 | -8/Materials | Entered Storage 2240 | -8/Storage | Core integrity fell below 50% 2267 | -8/Storage | Core integrity fell below 20% 2278 | -8/Storage | Lost 11 parts (2p5n2u2w) 2299 | -8/Storage | Destroyed by G-47 Trooper with Particle Gun Last Messages --------------- 02241_ Adv. Terrain Scan Processor temporarily disabled. 02242_ Slammed into G-47 Trooper. 02244_ K-01 Serf collects debris. 02247_ Adv. Weight Redist. System destroyed. 02252_ W-25 Informer sends out distress signal. 02253_ Connecting with Door Terminal... 02253_ Current location identified: Storage 02258_ Connecting with Door Terminal... 02259_ Acquired Prototype Energy Cannon. 02260_ Identified Adv. Beam Cannon. 02263_ Destroyed Flight Unit. 02276_ S-10 Pest heat short circuits Lgt. Ion Engine. 02281_ S-10 Pest destroyed. 02283_ Y-45 Defender destroyed. 02284_ Acquired 10 matter. 02291_ Critical hit (Burn: +37). 02295_ Structural Scanner destroyed. 02295_ Critical hit (Burn: +37). Map ----- +----------------------------------------------------+ | ??????????## ########## ##??????????? | | ??????????## + #T??????????? | | ??????????## # # ??????????? | | ??????????######+## + ??????????? | | ??????????###### # ??????????? | | ??????????????## ########+##+## ##??????????? | | ??????????????## ########* ![# ##??????????? | | ?????????????### ######## # ##??????????? | | ?????????????###/######## # ##??????????? | | ?????????????## ## # / ??????????? | | ?????????????## """" ######## #T??????????? | | ?????????????## "??? # T # ##??????????? | | ?????????????## "???????????? ##??????????? | | ?????????????## "??? # ?????? ##??????????? | | ?????????????## "??? # ?????? ##??????????? | | ?????????????## """" # ?????? ##??????????? | | ?????????????## " # ?????? ##??????????? | | ?????????? ## "%" ######## ### ????????? | | ??????????#+#######/########### ### ????????? | | ???? %%%% # ????????? | | ???? + ????????? | | ???? # ????????? | | ????########################## ### ????????? | | ????######################### ## ????????? | | ??????????????????????#####T# ##?????????? | | ??????????????????????##]@" # ##?????????? | | ??????????????????????##]]gg+ ##?????????? | | ??????????????????????##]]"!## ###?????????? | | ??????????????????????######## ###?????????? | | ??????????????????????######## ##??????????? | | ????????????????????????????## ###?????????? | | ????????????????????????????## ###?????????? | | ????????????????????????????## T##?????????? | | ????????????????????????????## ###?????????? | | ????????????????????????????#""""##?????????? | | ????????????????????????????????????????????? | | ????????????????????????????????????????????? | | ????????????????????????????????????????????? | | ????????????????????????????????????????????? | | ????????????????????????????????????????????? | | ????????????????????????????????????????????? | | ????????????????????????????????????????????? | | ????????????????????????????????????????????? | | | | | | | | | | | | | | | +----------------------------------------------------+ Best States ------------- Heat Dissipation 31 Energy Generation 14 Energy Capacity 265 Matter Stores 300 Matter Capacity 300 Sight Range 16 Terrain Scan Density 210 Additional Mass Support 9 Evasion (%) 64 Item Schematics ----------------- None Robot Schematics ------------------ None Fabricated ------------ Nothing Repaired ---------- Nothing Studied --------- None Alien Tech Used ----------------- None Achievements -------------- None Challenges ------------ None Game ------ Seed FactoryTechThermoblaster Manual? 0 Play Time 00:31:09 Cumulative 20.9 hours Start 2026.08.30 @ 00:46:11 End 2026.08.30 @ 01:16:13 Sessions 1 Manual Loads 0 Difficulty Rogue Special Mode None Game No. 45 Rogue 28 Adventurer 15 Explorer 2 Win Type - Total 0 Types 0/0/0/0/0/0/0/0/0/0 Lore% 21 Gallery% 20 Achievement% 17 Wizard Run 0 Options --------- Layout 1 ASCII 0 Keyboard 0 Movement Mouse Keybinds 0 Fullscreen 1 Font 24/Smallcaps Map View 50x35 Zoom Use 0% Tactical HUD 1 Map Filters NONE Filters NONE Steam 1 RUN: 30abf405-8c67-4eda-84b5-0dd1646befed